[Event "46th GRE-chT Premier 2018"]
[Site "Rio Achaia"]
[Date "2018.07.11"]
[Round "3"]
[White "Pasoglou, Nikoleta"]
[Black "Batzoli, Maria"]
[Result "0-1"]
[ECO "B10"]
[WhiteElo "1354"]
[BlackElo "1312"]
[Annotator "NA"]
[PlyCount "78"]
[EventDate "2018.07.10"]
[EventType "team-tourn"]
[EventCountry "GRE"]
[SourceTitle "playchess.com"]
[Source "ChessBase"]
[SourceQuality "1"]
[TimeControl "40/5400+30:1800+30"]

1. e4 {[%emt 0:00:00]} c6 {[%emt 0:00:30]} 2. c4 {[%emt 0:00:00]} e5 {[%emt 0:00:30]} 3. Nf3 {[%emt 0:00:00]} Qc7 {[%emt 0:00:36]} 4. Nc3 {[%emt 0:03:31]} Bb4 5. a3 {[%emt 0:04:12]} Bxc3 {[%emt 0:01:01]} 6. bxc3 {[%emt 0:00:20]} Nf6 {[%emt 0:00:09]} 7. Qc2 {[%emt 0:00:42]} O-O {[%emt 0:00:36]} 8. Be2 {[%emt 0:04:43]} d6 {[%emt 0:00:17]} 9. O-O {[%emt 0:01:09]} Bg4 {[%emt 0:01:16]} 10. h3 {[%emt 0:00:13]} Bh5 {[%emt 0:04:36]} 11. d3 {[%emt 0:02:25]} Nbd7 {[%emt 0:02:41]} 12. Bb2 {[%emt 0:12:37]} Bxf3 {[%emt 0:02:51]} 13. Bxf3 {[%emt 0:00:15]} h6 {[%emt 0:15:36]} 14. g3 {[%emt 0:15:29]} Nh7 {[%emt 0:03:03]} 15. Bg2 {[%emt 0:01:02]} g5 {[%emt 0:01:44]} 16. d4 {[%emt 0:04:21]} c5 {[%emt 0:00:45]} 17. d5 {[%emt 0:02:27]} Nb6 {[%emt 0:00:45]} 18. Qd3 {[%emt 0:07:18]} Qd7 {[%emt 0:01:41]} 19. Rfe1 f5 {[%emt 0:01:03]} 20. exf5 {[%emt 0:14:37]} Qxf5 {[%emt 0:00:14]} 21. Qxf5 {[%emt 0:01:00]} Rxf5 {[%emt 0:00:03]} 22. Be4 {[%emt 0:01:55]} Rf6 {[%emt 0:00:35]} 23. Bd3 {[%emt 0:00:29]} Raf8 {[%emt 0:00:11]} 24. Re2 {[%emt 0:04:56]} R8f7 {[%emt 0:02:03]} 25. Rb1 {[%emt 0:08:04]} Nf8 {[%emt 0:01:18]} 26. Bc1 {[%emt 0:03:55]} Kg7 {[%emt 0:00:25]} 27. Be3 {[%emt 0:02:06]} Ng6 {[%emt 0:02:46]} 28. Ra2 {[%emt 0:03:30]} Na4 {[%emt 0:00:51]} 29. Rc2 {[%emt 0:00:51]} Rd7 {[%emt 0:00:53]} 30. Kg2 {[%emt 0:02:12]} Ne7 {[%emt 0:00:17]} 31. Rf1 {[%emt 0:00:38]} Nf5 {[%emt 0:00:34]} 32. Re1 {[%emt 0:00:29]} Rdf7 {[%emt 0:03:57]} 33. Ree2 {[%emt 0:00:12]} Re7 {[%emt 0:02:31]} 34. Bc1 {[%emt 0:00:40]} Nb6 {[%emt 0:01:37]} 35. Bb2 {[%emt 0:00:36]} Rf8 {[%emt 0:05:22]} 36. Ba1 {[%emt 0:00:31]} Ref7 {[%emt 0:00:45]} 37. Bxf5 {[%emt 0:00:28]} Rxf5 {[%emt 0:00:11]} 38. Re4 {[%emt 0:00:03]} Rf3 {[%emt 0:00:43]} 39. Rce2 {[%emt 0:00:00]} Kg6 {[%emt 0:00:00]} 0-1

[Event "46th GRE-chT Premier 2018"]
[Site "Rio Achaia"]
[Date "2018.07.11"]
[Round "3"]
[White "Ilia, Anastasia"]
[Black "Kotsoglou, Evi"]
[Result "1-0"]
[ECO "C55"]
[WhiteElo "1348"]
[BlackElo "1424"]
[Annotator "NA"]
[PlyCount "113"]
[EventDate "2018.07.10"]
[EventType "team-tourn"]
[EventCountry "GRE"]
[SourceTitle "playchess.com"]
[Source "ChessBase"]
[SourceQuality "1"]
[TimeControl "40/5400+30:1800+30"]

1. e4 {[%emt 0:00:00]} e5 {[%emt 0:00:00]} 2. Nf3 {[%emt 0:00:00]} Nc6 {[%emt 0:00:00]} 3. Bc4 {[%emt 0:00:11]} Nf6 {[%emt 0:01:21]} 4. d3 {[%emt 0:00:07]} h6 {[%emt 0:01:53]} 5. c3 {[%emt 0:00:18]} d6 {[%emt 0:03:52]} 6. O-O {[%emt 0:00:18]} Be7 {[%emt 0:00:36]} 7. Re1 {[%emt 0:01:14]} Na5 {[%emt 0:03:37]} 8. Bb5+ {[%emt 0:00:55]} Nc6 {[%emt 0:03:50]} 9. Nbd2 {[%emt 0:01:23]} O-O {[%emt 0:00:36]} 10. Nf1 {[%emt 0:00:15]} Nh7 {[%emt 0:07:08]} 11. Ng3 {[%emt 0:04:59]} Kh8 {[%emt 0:12:34]} 12. h3 {[%emt 0:06:20]} f5 {[%emt 0:03:23]} 13. exf5 {[%emt 0:00:42]} Bxf5 {[%emt 0:00:40]} 14. Nxf5 {[%emt 0:00:24]} Rxf5 {[%emt 0:00:29]} 15. d4 {[%emt 0:00:35]} exd4 {[%emt 0:08:59]} 16. Bxc6 {[%emt 0:00:51]} bxc6 {[%emt 0:00:09]} 17. Nxd4 {[%emt 0:01:26]} Rf7 {[%emt 0:12:57]} 18. Nxc6 {[%emt 0:00:52]} Qf8 {[%emt 0:07:05]} 19. Nxe7 {[%emt 0:00:33]} Rxe7 {[%emt 0:00:38]} 20. Rxe7 {[%emt 0:00:09]} Qxe7 {[%emt 0:00:30]} 21. Be3 {[%emt 0:00:17]} Nf6 {[%emt 0:05:22]} 22. Qf3 {[%emt 0:10:27]} Rb8 {[%emt 0:06:31]} 23. b3 {[%emt 0:10:11]} a6 {[%emt 0:01:49]} 24. Re1 {[%emt 0:01:43]} d5 {[%emt 0:06:15]} 25. Qf5 {[%emt 0:18:00]} c6 {[%emt 0:02:20]} 26. Bd2 {[%emt 0:01:10]} Ne4 {[%emt 0:06:40]} 27. Qf4 {[%emt 0:17:47]} Rf8 {[%emt 0:01:13]} 28. Qe3 {[%emt 0:00:09]} Qh4 {[%emt 0:01:58]} 29. Rf1 {[%emt 0:01:23]} Rf6 {[%emt 0:01:23]} 30. f4 {[%emt 0:04:48]} Rg6 {[%emt 0:00:35]} 31. Be1 {[%emt 0:00:40]} Qh5 {[%emt 0:00:34]} 32. g4 {[%emt 0:01:03]} Qf5 {[%emt 0:00:29]} 33. Kh2 {[%emt 0:01:28]} Qd7 {[%emt 0:00:21]} 34. f5 {[%emt 0:00:48]} Rf6 {[%emt 0:00:31]} 35. Bg3 {[%emt 0:03:35]} Qf7 {[%emt 0:00:40]} 36. Be5 {[%emt 0:00:43]} Qd7 {[%emt 0:00:28]} 37. Bxf6 {[%emt 0:00:05]} Qd6+ {[%emt 0:00:29]} 38. Qf4 {[%emt 0:00:15]} Qxf6 {[%emt 0:00:18]} 39. c4 {[%emt 0:02:49]} Qb2+ {[%emt 0:00:24]} 40. Kg1 {[%emt 0:00:00]} Qd4+ {[%emt 0:00:00]} 41. Kh1 {[%emt 0:03:43]} Qb2 {[%emt 0:08:13]} 42. cxd5 {[%emt 0:01:40]} cxd5 {[%emt 0:00:24]} 43. Qh2 {[%emt 0:06:20]} Qc3 {[%emt 0:02:09]} 44. Rg1 {[%emt 0:07:47]} Qe3 {[%emt 0:03:46]} 45. Qg2 {[%emt 0:05:02]} d4 {[%emt 0:05:03]} 46. h4 {[%emt 0:02:37]} d3 {[%emt 0:02:16]} 47. g5 {[%emt 0:00:36]} Nf2+ {[%emt 0:09:12]} 48. Kh2 {[%emt 0:00:16]} Qf4+ {[%emt 0:01:05]} 49. Qg3 {[%emt 0:00:09]} Ng4+ {[%emt 0:01:24]} 50. Kh3 {[%emt 0:02:16]} Nf2+ {[%emt 0:02:16]} 51. Kg2 {[%emt 0:00:29]} Qe4+ {[%emt 0:00:32]} 52. Qf3 {[%emt 0:00:28]} d2 {[%emt 0:00:28]} 53. Kxf2 {[%emt 0:01:06]} Qd4+ {[%emt 0:00:22]} 54. Qe3 {[%emt 0:00:16]} Qxh4+ {[%emt 0:00:42]} 55. Ke2 {[%emt 0:00:54]} Qh2+ {[%emt 0:00:25]} 56. Kd1 {[%emt 0:00:27]} Qd6 {[%emt 0:00:34]} 57. Qe8+ {[%emt 0:00:12]} 1-0

[Event "46th GRE-chT Premier 2018"]
[Site "Rio Achaia"]
[Date "2018.07.11"]
[Round "3"]
[White "Tounta, Nefeli"]
[Black "Petraki, Evaggelia"]
[Result "0-1"]
[ECO "A53"]
[WhiteElo "1344"]
[BlackElo "1814"]
[Annotator "NA"]
[PlyCount "140"]
[EventDate "2018.07.10"]
[EventType "team-tourn"]
[EventCountry "GRE"]
[SourceTitle "playchess.com"]
[Source "ChessBase"]
[SourceQuality "1"]
[TimeControl "40/5400+30:1800+30"]

1. d4 Nf6 {[%emt 0:00:59]} 2. c4 {[%emt 0:00:00]} d6 {[%emt 0:00:07]} 3. Nc3 {[%emt 0:00:37]} Nbd7 {[%emt 0:00:05]} 4. e4 {[%emt 0:00:49]} e5 {[%emt 0:00:09]} 5. d5 {[%emt 0:00:47]} Be7 {[%emt 0:00:25]} 6. Bd3 {[%emt 0:04:08]} O-O {[%emt 0:01:18]} 7. Nge2 {[%emt 0:01:39]} c6 {[%emt 0:01:22] A53: Old Indian Defence without Nf3} 8. O-O {[%emt 0:01:31]} cxd5 {[%emt 0:04:37]} (8... Nc5 9. Bc2 a5 10. Ng3 Bg4 11. f3 Bd7 12. Be3 cxd5 13. exd5 Qc7 14. a3 Rfc8 15. Rc1 a4 16. Kh1 Qa5 {0-1 (57) Girya,O (2484)-Danielian,E (2413) Riadh 2017}) 9. cxd5 {[%emt 0:04:40]} Nc5 {[%emt 0:02:37]} 10. b4 $146 {[%emt 0:12:03]} ({Predecessor:} 10. Bc2 a5 11. Ng3 Bd7 12. f3 Rc8 13. Kh1 b5 14. Be3 {½-½ (50) Maslov,A (2046)-Shajakhmetov,L (2078) Zelenograd 2017}) 10... Nxd3 {[%emt 0:00:29]} 11. Qxd3 {[%emt 0:00:09]} Ne8 {[%emt 0:07:29]} 12. Ng3 {[%emt 0:08:06]} Bg5 {[%emt 0:02:59]} 13. b5 {[%emt 0:10:32]} g6 {[%emt 0:02:41]} 14. f4 {[%emt 0:08:19]} exf4 {[%emt 0:04:39]} 15. Bxf4 {[%emt 0:00:08]} Bxf4 16. Rxf4 {[%emt 0:00:07]} Ng7 {[%emt 0:01:58]} 17. Re1 {[%emt 0:07:17]} Qc7 {[%emt 0:08:45]} 18. Qd4 {[%emt 0:14:24]} Bd7 {[%emt 0:10:14]} 19. e5 {[%emt 0:04:34]} Rac8 {[%emt 0:01:24]} 20. Rf3 {[%emt 0:02:42]} Qc5 {[%emt 0:02:30]} 21. Qxc5 {[%emt 0:04:14]} dxc5 {[%emt 0:00:36]} 22. Nge4 {[%emt 0:01:58]} Ne8 {[%emt 0:02:17]} 23. Nf6+ {[%emt 0:00:38]} Nxf6 {[%emt 0:00:05]} 24. Rxf6 {[%emt 0:00:04]} Rce8 {[%emt 0:04:12]} 25. Rd6 {[%emt 0:01:41]} Re7 {[%emt 0:03:29]} 26. Ne4 {[%emt 0:01:54]} Bxb5 {[%emt 0:00:52]} 27. Nxc5 {[%emt 0:02:26]} b6 {[%emt 0:10:49]} 28. Nb3 {[%emt 0:01:58]} Rfe8 {[%emt 0:00:12]} 29. Nd4 {[%emt 0:02:03]} Bc4 {[%emt 0:17:49]} 30. Nc6 {[%emt 0:01:21]} Rc7 {[%emt 0:00:05]} 31. a3 {[%emt 0:00:31]} Bxd5 {[%emt 0:00:44]} 32. Nxa7 {[%emt 0:01:27]} Rxa7 {[%emt 0:00:58]} 33. Rxd5 {[%emt 0:00:06]} Rxa3 {[%emt 0:01:09]} 34. Rb5 {[%emt 0:00:29]} Re6 {[%emt 0:01:04]} 35. Reb1 {[%emt 0:00:26]} Ra6 {[%emt 0:00:32]} 36. Kf2 {[%emt 0:00:52]} Kf8 {[%emt 0:01:02]} 37. Kf3 {[%emt 0:02:10]} Ke7 {[%emt 0:00:22]} 38. Rd1 {[%emt 0:00:54]} Ra5 {[%emt 0:01:17]} 39. Rxa5 {[%emt 0:00:23]} bxa5 {[%emt 0:00:04]} 40. Rd5 {[%emt 0:00:00]} Ra6 {[%emt 0:00:00]} 41. Rd3 {[%emt 0:02:55]} a4 {[%emt 0:00:28]} 42. Ra3 {[%emt 0:00:05]} Ke6 {[%emt 0:00:05]} 43. Ke4 {[%emt 0:01:47]} Ra5 {[%emt 0:00:06]} 44. Kd4 {[%emt 0:01:03]} Rd5+ {[%emt 0:02:24]} 45. Kc3 {[%emt 0:03:10]} Rxe5 {[%emt 0:00:36]} 46. Rxa4 {[%emt 0:00:16]} Re2 {[%emt 0:00:19]} 47. Rg4 {[%emt 0:07:09]} f5 {[%emt 0:14:43]} 48. Rh4 {[%emt 0:09:09]} Rxg2 {[%emt 0:07:05]} 49. Rxh7 {[%emt 0:00:10]} Re2 {[%emt 0:00:03]} 50. Kd3 {[%emt 0:03:36]} Re5 {[%emt 0:00:34]} 51. h4 {[%emt 0:00:37]} f4 {[%emt 0:00:54]} 52. Rh8 {[%emt 0:00:46]} Kf7 {[%emt 0:05:58]} 53. Rh7+ {[%emt 0:02:42]} Kg8 {[%emt 0:00:58]} 54. Rc7 {[%emt 0:01:11]} Rh5 {[%emt 0:01:04]} 55. Ke4 {[%emt 0:02:33]} Rxh4 {[%emt 0:00:11]} 56. Kf3 {[%emt 0:00:26]} g5 {[%emt 0:01:29]} 57. Rc5 {[%emt 0:00:11]} Rh3+ {[%emt 0:00:07]} 58. Kg2 {[%emt 0:01:58]} Rg3+ {[%emt 0:00:17]} 59. Kf2 {[%emt 0:00:09]} Kf7 {[%emt 0:00:16]} 60. Rc6 {[%emt 0:00:23]} Re3 {[%emt 0:00:53]} 61. Rc5 {[%emt 0:00:40]} Kf6 {[%emt 0:00:12]} 62. Kg2 {[%emt 0:00:22]} Re5 {[%emt 0:00:07]} 63. Rc6+ {[%emt 0:00:21]} Kf5 {[%emt 0:00:05]} 64. Kf2 {[%emt 0:00:42]} g4 {[%emt 0:00:53]} 65. Rc3 {[%emt 0:00:59]} g3+ {[%emt 0:01:38]} 66. Kf3 {[%emt 0:00:28]} Re3+ {[%emt 0:01:11]} 67. Rxe3 {[%emt 0:00:18]} fxe3 {[%emt 0:00:03]} 68. Kxe3 {[%emt 0:00:33]} Kg4 {[%emt 0:00:03]} 69. Ke2 {[%emt 0:00:12]} Kh3 {[%emt 0:00:04]} 70. Kf1 {[%emt 0:00:06]} Kh2 {[%emt 0:00:03]} 0-1

[Event "46th GRE-chT Premier 2018"]
[Site "Rio Achaia"]
[Date "2018.07.11"]
[Round "3"]
[White "Chatzigavriil, Georgios"]
[Black "Gioutsos, Vasileios"]
[Result "1-0"]
[ECO "A16"]
[WhiteElo "1318"]
[BlackElo "1339"]
[Annotator "NA"]
[PlyCount "63"]
[EventDate "2018.07.10"]
[EventType "team-tourn"]
[EventCountry "GRE"]
[SourceTitle "playchess.com"]
[Source "ChessBase"]
[SourceQuality "1"]
[TimeControl "40/5400+30:1800+30"]

1. c4 {[%emt 0:00:00]} Nf6 {[%emt 0:00:00]} 2. Nc3 {[%emt 0:00:00]} g6 {[%emt 0:00:10]} 3. g3 {[%emt 0:00:00]} Bg7 {[%emt 0:00:24]} 4. Bg2 {[%emt 0:00:00]} O-O {[%emt 0:00:43]} 5. d3 {[%emt 0:00:10]} c5 {[%emt 0:00:38]} 6. e4 {[%emt 0:00:12]} d6 {[%emt 0:01:03]} 7. Nge2 {[%emt 0:00:10]} Nc6 {[%emt 0:00:44]} 8. O-O {[%emt 0:01:02]} a6 {[%emt 0:01:17]} 9. b3 {[%emt 0:01:27]} Rb8 {[%emt 0:01:54]} 10. a4 {[%emt 0:01:10]} Qb6 {[%emt 0:03:35]} 11. Be3 {[%emt 0:04:20]} Ng4 {[%emt 0:02:20]} 12. Bd2 {[%emt 0:00:34]} Nb4 {[%emt 0:02:21]} 13. Rb1 {[%emt 0:01:15]} Ne5 {[%emt 0:11:08]} 14. Nf4 {[%emt 0:02:57]} e6 {[%emt 0:03:22]} 15. Be3 {[%emt 0:04:49]} Nexd3 {[%emt 0:03:36]} 16. Nxd3 {[%emt 0:02:35]} Bxc3 {[%emt 0:00:07]} 17. Rc1 {[%emt 0:00:51]} Nxd3 {[%emt 0:12:47]} 18. Rxc3 {[%emt 0:02:05]} Ne5 {[%emt 0:04:30]} 19. f4 {[%emt 0:00:27]} Qb4 {[%emt 0:04:53]} 20. Qc2 {[%emt 0:02:16]} Ng4 {[%emt 0:02:08]} 21. Bd2 {[%emt 0:00:27]} Qb6 {[%emt 0:01:09]} 22. Qd1 {[%emt 0:01:04]} Nf6 {[%emt 0:01:36]} 23. Rd3 {[%emt 0:04:02]} Qc7 {[%emt 0:11:29]} 24. Bc3 {[%emt 0:01:22]} Nd7 {[%emt 0:05:00]} 25. f5 {[%emt 0:02:01]} exf5 {[%emt 0:02:31]} 26. exf5 {[%emt 0:00:08]} Ne5 {[%emt 0:00:51]} 27. Rxd6 {[%emt 0:01:04]} Nc6 {[%emt 0:03:46]} 28. fxg6 {[%emt 0:01:22]} Nd4 {[%emt 0:04:50]} 29. gxh7+ {[%emt 0:00:56]} Kh8 {[%emt 0:00:50]} 30. Bxd4+ {[%emt 0:00:08]} cxd4 {[%emt 0:00:15]} 31. Qxd4+ {[%emt 0:02:28]} Kxh7 {[%emt 0:00:13]} 32. Qh4+ {[%emt 0:00:22]} 1-0

[Event "46th GRE-chT Premier 2018"]
[Site "Rio Achaia"]
[Date "2018.07.11"]
[Round "3"]
[White "Stathatos, Alexandros"]
[Black "Fertakis, Dimitrios"]
[Result "0-1"]
[ECO "B40"]
[WhiteElo "1311"]
[BlackElo "1058"]
[Annotator "NA"]
[PlyCount "80"]
[EventDate "2018.07.10"]
[EventType "team-tourn"]
[EventCountry "GRE"]
[SourceTitle "playchess.com"]
[Source "ChessBase"]
[SourceQuality "1"]
[TimeControl "40/5400+30:1800+30"]

1. e4 {[%emt 0:00:00]} c5 {[%emt 0:00:00]} 2. Nf3 {[%emt 0:00:00]} e6 {[%emt 0:00:00]} 3. d4 {[%emt 0:00:00]} cxd4 {[%emt 0:00:00]} 4. Nxd4 {[%emt 0:00:00]} Nf6 {[%emt 0:00:00]} 5. Bd3 {[%emt 0:05:34]} Nc6 {[%emt 0:00:25]} 6. Nb3 {[%emt 0:00:07]} Be7 {[%emt 0:04:25]} 7. O-O {[%emt 0:00:55]} O-O {[%emt 0:00:36]} 8. Nc3 {[%emt 0:00:40]} d5 {[%emt 0:03:31]} 9. exd5 {[%emt 0:01:20]} Nxd5 {[%emt 0:00:13]} 10. Bd2 {[%emt 0:02:11]} Bf6 {[%emt 0:01:33]} 11. Nxd5 {[%emt 0:03:27]} Qxd5 {[%emt 0:00:16]} 12. Rb1 {[%emt 0:00:34]} b6 {[%emt 0:04:55]} 13. Re1 {[%emt 0:01:37]} Bb7 {[%emt 0:03:26]} 14. Be4 {[%emt 0:00:54]} Qd8 {[%emt 0:01:31]} 15. c3 {[%emt 0:03:31]} Qc7 {[%emt 0:02:46]} 16. Qc2 {[%emt 0:01:16]} h6 {[%emt 0:03:14]} 17. Rbd1 {[%emt 0:04:06]} Rad8 {[%emt 0:04:43]} 18. Be3 {[%emt 0:06:58]} Rxd1 {[%emt 0:27:55]} 19. Rxd1 {[%emt 0:02:02]} Rd8 {[%emt 0:00:12]} 20. g3 {[%emt 0:01:50]} Rxd1+ {[%emt 0:06:08]} 21. Qxd1 {[%emt 0:00:09]} Ne5 {[%emt 0:02:05]} 22. Bxb7 {[%emt 0:00:49]} Qxb7 {[%emt 0:00:24]} 23. Nd4 {[%emt 0:00:28]} Nc4 {[%emt 0:01:52]} 24. Bc1 {[%emt 0:01:21]} Qd5 {[%emt 0:06:33]} 25. b3 {[%emt 0:01:35]} Nd6 {[%emt 0:03:36]} 26. Qd2 {[%emt 0:03:53]} Ne4 {[%emt 0:02:58]} 27. Qe3 {[%emt 0:01:18]} Ng5 {[%emt 0:02:29]} 28. Bb2 {[%emt 0:02:29]} Bxd4 {[%emt 0:01:58]} 29. cxd4 {[%emt 0:00:27]} Nf3+ {[%emt 0:02:52]} 30. Kf1 {[%emt 0:00:38]} Nxh2+ {[%emt 0:00:18]} 31. Ke2 {[%emt 0:00:17]} Ng4 {[%emt 0:00:53]} 32. Qf4 {[%emt 0:01:26]} Nf6 {[%emt 0:00:41]} 33. f3 {[%emt 0:01:59]} Qb5+ {[%emt 0:00:47]} 34. Kd2 {[%emt 0:00:38]} Qd7 {[%emt 0:01:06]} 35. g4 {[%emt 0:03:55]} Nd5 {[%emt 0:01:09]} 36. Qe5 {[%emt 0:00:46]} Qc7 {[%emt 0:01:11]} 37. Qe2 {[%emt 0:01:14]} Qf4+ {[%emt 0:00:32]} 38. Kd1 {[%emt 0:01:44]} Ne3+ {[%emt 0:00:30]} 39. Ke1 {[%emt 0:00:16]} Qg3+ {[%emt 0:00:49]} 40. Kd2 {[%emt 0:00:00]} Nd5 {[%emt 0:00:00]} 0-1

[Event "46th GRE-chT Premier 2018"]
[Site "Rio Achaia"]
[Date "2018.07.11"]
[Round "3"]
[White "Mavridis, Athanasios"]
[Black "Kafantaris, Pavlos"]
[Result "1/2-1/2"]
[ECO "A39"]
[WhiteElo "1304"]
[BlackElo "1380"]
[Annotator "NA"]
[PlyCount "108"]
[EventDate "2018.07.10"]
[EventType "team-tourn"]
[EventCountry "GRE"]
[SourceTitle "playchess.com"]
[Source "ChessBase"]
[SourceQuality "1"]
[TimeControl "40/5400+30:1800+30"]

1. Nf3 {[%emt 0:00:00]} Nf6 {[%emt 0:00:03]} 2. c4 {[%emt 0:00:00]} c5 {[%emt 0:01:02]} 3. Nc3 {[%emt 0:00:02]} Nc6 {[%emt 0:01:04]} 4. g3 {[%emt 0:00:02]} g6 {[%emt 0:01:47]} 5. Bg2 {[%emt 0:00:04]} Bg7 {[%emt 0:00:41]} 6. O-O {[%emt 0:00:07]} O-O {[%emt 0:05:32]} 7. d4 {[%emt 0:00:06]} cxd4 {[%emt 0:00:49]} 8. Nxd4 {[%emt 0:00:07]} Qb6 {[%emt 0:02:14]} 9. Nxc6 {[%emt 0:03:51]} dxc6 {[%emt 0:00:39]} 10. Qb3 {[%emt 0:00:09]} Be6 {[%emt 0:09:14]} 11. Qxb6 {[%emt 0:10:40]} axb6 {[%emt 0:00:13]} 12. b3 {[%emt 0:19:56]} Ne4 {[%emt 0:15:05]} 13. Bxe4 {[%emt 0:00:07]} Bxc3 {[%emt 0:00:10]} 14. Bh6 {[%emt 0:00:32]} Bxa1 {[%emt 0:14:07]} 15. Bxf8 {[%emt 0:00:10]} Kxf8 {[%emt 0:01:45]} 16. Rxa1 {[%emt 0:00:07]} Rd8 {[%emt 0:04:14]} 17. Bd3 {[%emt 0:00:08]} Bf5 {[%emt 0:01:12]} 18. Rd1 {[%emt 0:00:19]} Ke8 {[%emt 0:01:38]} 19. f3 {[%emt 0:01:07]} Bxd3 {[%emt 0:01:58]} 20. Rxd3 {[%emt 0:00:06]} Ra8 {[%emt 0:08:24]} 21. Rd2 {[%emt 0:00:59]} e6 {[%emt 0:00:26]} 22. Kf2 {[%emt 0:00:11]} Ke7 {[%emt 0:00:27]} 23. e4 {[%emt 0:00:50]} f6 {[%emt 0:03:56]} 24. Ke3 {[%emt 0:03:05]} Ra5 {[%emt 0:01:27]} 25. Kd4 {[%emt 0:06:24]} Ra8 {[%emt 0:03:50]} 26. Kc3 {[%emt 0:00:18]} Ra5 {[%emt 0:00:19]} 27. Kb2 {[%emt 0:01:12]} c5 {[%emt 0:02:52]} 28. h4 {[%emt 0:01:19]} Ra8 {[%emt 0:03:13]} 29. h5 {[%emt 0:01:37]} g5 {[%emt 0:00:45]} 30. g4 {[%emt 0:03:18]} h6 {[%emt 0:01:14]} 31. Rd1 {[%emt 0:00:42]} Rd8 {[%emt 0:02:21]} 32. Rxd8 {[%emt 0:00:16]} Kxd8 {[%emt 0:00:03]} 33. Kc3 {[%emt 0:03:04]} Kd7 {[%emt 0:00:11]} 34. Kd3 {[%emt 0:02:30]} Kd6 {[%emt 0:00:08]} 35. a3 {[%emt 0:02:13]} Ke5 {[%emt 0:00:57]} 36. Ke3 {[%emt 0:00:06]} f5 {[%emt 0:01:35]} 37. exf5 {[%emt 0:02:44]} exf5 {[%emt 0:00:15]} 38. b4 {[%emt 0:02:22]} Ke6 {[%emt 0:03:15]} 39. Kf2 {[%emt 0:09:04]} Ke5 {[%emt 0:00:23]} 40. gxf5 {[%emt 0:00:00]} Kxf5 {[%emt 0:00:00]} 41. Kg3 {[%emt 0:00:49]} Ke5 {[%emt 0:02:33]} 42. Kg4 {[%emt 0:00:11]} Kd4 {[%emt 0:05:33]} 43. Kf5 {[%emt 0:00:08]} Ke3 {[%emt 0:00:26]} 44. Kg4 {[%emt 0:01:53]} Kd4 {[%emt 0:00:33]} 45. Kf5 {[%emt 0:00:16]} Ke3 {[%emt 0:00:10]} 46. Kg4 {[%emt 0:00:22]} Kd4 {[%emt 0:00:04]} 47. bxc5 {[%emt 0:01:14]} bxc5 {[%emt 0:00:33]} 48. Kf5 {[%emt 0:00:05]} Ke3 {[%emt 0:07:50]} 49. Kg4 {[%emt 0:00:09]} Kd4 {[%emt 0:00:13]} 50. Kf5 {[%emt 0:00:04]} Ke3 {[%emt 0:01:39]} 51. Kg4 {[%emt 0:00:20]} Kd4 {[%emt 0:00:19]} 52. Kf5 {[%emt 0:00:31]} Ke3 {[%emt 0:00:08]} 53. Kg4 {[%emt 0:00:14]} Kd4 {[%emt 0:00:03]} 54. Kf5 {[%emt 0:00:27]} Ke3 {[%emt 0:03:15]} 1/2-1/2

[Event "46th GRE-chT Premier 2018"]
[Site "Rio Achaia"]
[Date "2018.07.11"]
[Round "3"]
[White "Soukarie, Zorz"]
[Black "Tzikas, Athanasios G"]
[Result "0-1"]
[ECO "B90"]
[WhiteElo "1295"]
[BlackElo "1251"]
[Annotator "NA"]
[PlyCount "85"]
[EventDate "2018.07.10"]
[EventType "team-tourn"]
[EventCountry "GRE"]
[SourceTitle "playchess.com"]
[Source "ChessBase"]
[SourceQuality "1"]
[TimeControl "40/5400+30:1800+30"]

1. e4 {[%emt 0:00:00]} c5 {[%emt 0:00:00]} 2. Nf3 {[%emt 0:00:00]} d6 {[%emt 0:00:00]} 3. d4 {[%emt 0:00:00]} cxd4 {[%emt 0:00:00]} 4. Nxd4 {[%emt 0:00:00]} Nf6 {[%emt 0:00:11]} 5. Nc3 {[%emt 0:00:00]} a6 {[%emt 0:00:18]} 6. Be3 {[%emt 0:00:03]} e6 {[%emt 0:00:50]} 7. Be2 {[%emt 0:00:15]} Be7 {[%emt 0:00:57]} 8. a4 {[%emt 0:00:25]} O-O {[%emt 0:00:51]} 9. O-O {[%emt 0:00:15]} Bd7 {[%emt 0:01:22]} 10. Nb3 {[%emt 0:01:36]} Bc6 {[%emt 0:01:41]} 11. f3 {[%emt 0:02:11]} Nbd7 {[%emt 0:02:04]} 12. Bf2 {[%emt 0:19:24]} d5 {[%emt 0:05:18]} 13. exd5 {[%emt 0:00:07]} Nxd5 {[%emt 0:00:17]} 14. Nxd5 {[%emt 0:00:29]} Bxd5 {[%emt 0:00:07]} 15. c4 {[%emt 0:01:35]} Bc6 {[%emt 0:00:50]} 16. a5 {[%emt 0:06:37]} Qc7 {[%emt 0:04:22]} 17. Bg3 {[%emt 0:04:10]} Qd8 {[%emt 0:05:00]} 18. Bd6 {[%emt 0:01:39]} Nf6 {[%emt 0:03:30]} 19. Bxe7 {[%emt 0:01:12]} Qxe7 {[%emt 0:00:09]} 20. Qd2 {[%emt 0:01:25]} Rfd8 {[%emt 0:03:03]} 21. Qc3 {[%emt 0:00:25]} Rac8 {[%emt 0:04:28]} 22. Rfc1 {[%emt 0:06:33]} e5 {[%emt 0:19:22]} 23. Qe3 {[%emt 0:17:26]} Qe8 {[%emt 0:10:17]} 24. Bf1 {[%emt 0:12:32]} e4 {[%emt 0:03:03]} 25. f4 {[%emt 0:03:15]} Ng4 {[%emt 0:15:08]} 26. Qe2 {[%emt 0:00:21]} f5 {[%emt 0:01:02]} 27. h3 {[%emt 0:00:07]} Nf6 {[%emt 0:00:25]} 28. Qe3 {[%emt 0:00:07]} Ba4 {[%emt 0:01:25]} 29. Ra3 {[%emt 0:01:17]} Bxb3 {[%emt 0:00:17]} 30. Rxb3 {[%emt 0:00:18]} Qc6 {[%emt 0:03:17]} 31. Ra1 {[%emt 0:05:01]} Qc7 {[%emt 0:04:10]} 32. g3 {[%emt 0:04:01]} Ne8 {[%emt 0:02:22]} 33. Qc3 {[%emt 0:03:02]} Nd6 {[%emt 0:00:39]} 34. Ra4 {[%emt 0:00:32]} Re8 {[%emt 0:02:03]} 35. Be2 {[%emt 0:00:34]} Qc5+ {[%emt 0:01:06]} 36. Kg2 {[%emt 0:00:11]} e3 {[%emt 0:00:35]} 37. Rbb4 {[%emt 0:01:45]} Ne4 {[%emt 0:03:05]} 38. Qe1 {[%emt 0:00:33]} Nd2 {[%emt 0:00:51]} 39. Kh2 {[%emt 0:01:56]} Qc6 {[%emt 0:01:05]} 40. Kg1 {[%emt 0:00:00]} Nf3+ {[%emt 0:00:00]} 41. Bxf3 {[%emt 0:02:28]} Qxf3 {[%emt 0:01:06]} 42. Ra3 {[%emt 0:00:50]} Rcd8 {[%emt 0:01:50]} 43. Qd1 0-1